fUST/lending_fUST_20251118
["ID","MTS","AMOUNT","RATE_DAILY","PERIOD"]
[394262677,1763412564304,-500.0,0.00034988,7]
[394262678,1763412564323,-500.0,0.00034988,7]
[394262679,1763412564344,-500.0,0.00034988,7]
[394262680,1763412564364,-500.0,0.00034988,7]
[394262681,1763412564384,-252.67373373,0.00034988,7]
[394262682,1763412564403,-500.0,0.00034988,7]
[394262683,1763412564423,-500.0,0.00034988,7]
[394262684,1763412564445,-500.0,0.00034988,7]
[394262685,1763412564465,-500.0,0.00034988,7]
[394262686,1763412564487,-418.82251461,0.00034988,7]
[394262687,1763412564507,-500.0,0.00034988,7]
[394262688,1763412564526,-500.0,0.00034988,7]
[394262689,1763412564545,-500.0,0.00034988,7]
[394262690,1763412564566,-500.0,0.00034988,7]
[394262691,1763412564589,-500.0,0.00034988,7]
[394262692,1763412564609,-500.0,0.00034988,7]
[394262693,1763412564629,-500.0,0.00034988,7]
[394262694,1763412564650,-500.0,0.00034988,7]
[394262695,1763412564668,-500.0,0.00034988,7]
[394262696,1763412564689,-500.0,0.00034988,7]
[394262697,1763412564712,-500.0,0.00034988,7]
[394262698,1763412564734,-500.0,0.00034988,7]
[394262699,1763412564755,-500.0,0.00034988,7]
[394262700,1763412564778,-500.0,0.00034988,7]
[394262701,1763412564796,-500.0,0.00034988,7]
[394262702,1763412564816,-500.0,0.00034988,7]
[394262703,1763412564837,-500.0,0.00034988,7]
[394262704,1763412564857,-500.0,0.00034988,7]
[394262705,1763412564880,-500.0,0.00034988,7]
[394262706,1763412564901,-500.0,0.00034988,7]
[394262707,1763412564921,-500.0,0.00034988,7]
[394262708,1763412564939,-500.0,0.00034988,7]
[394262709,1763412564960,-500.0,0.00034988,7]
[394262710,1763412564984,-500.0,0.00034988,7]
[394262711,1763412565005,-500.0,0.00034988,7]
[394262712,1763412565026,-500.0,0.00034988,7]
[394262713,1763412565047,-337.34900933,0.00034988,7]
[394262714,1763412565068,-383.83198767,0.00034988,7]
[394262715,1763412565095,-500.0,0.00034988,7]
[394262716,1763412565115,-500.0,0.00034988,7]
[394262717,1763412565135,-500.0,0.00034988,7]
[394262718,1763412565157,-500.0,0.00034988,7]
[394262719,1763412565178,-530.0,0.00034988,7]
[394262720,1763412565202,-500.0,0.00034988,7]
[394262721,1763412565223,-500.0,0.00034988,7]
[394262722,1763412565244,-500.0,0.00034988,7]
[394262723,1763412565268,-500.0,0.00034988,7]
[394262724,1763412565291,-500.0,0.00034988,7]
[394262725,1763412565313,-500.0,0.00034988,7]
[394262726,1763412565338,-500.0,0.00034988,7]
[394262727,1763412565365,-500.0,0.00034988,7]
[394262728,1763412565386,-500.0,0.00034988,7]
[394262729,1763412565407,-500.0,0.00034988,7]
[394262730,1763412565433,-500.0,0.00034988,7]
[394262731,1763412565454,-500.0,0.00034988,7]
[394262732,1763412565476,-500.0,0.00034988,7]
[394262733,1763412565500,-500.0,0.00034988,7]
[394262734,1763412565521,-500.0,0.00034988,7]
[394262735,1763412565543,-500.0,0.00034988,7]
[394262736,1763412565567,-500.0,0.00034988,7]
[394262737,1763412565680,-500.0,0.00034988,7]
[394262738,1763412565705,-500.0,0.00034988,7]
[394262739,1763412565726,-500.0,0.00034988,7]
[394262740,1763412565748,-500.0,0.00034988,7]
[394262741,1763412565770,-500.0,0.00034988,7]
[394262742,1763412565791,-311.01956121,0.00034988,7]
[394262743,1763412565821,-500.0,0.00034988,7]
[394262744,1763412565845,-500.0,0.00034988,7]
[394262745,1763412565866,-500.0,0.00034988,7]
[394262746,1763412565890,-500.0,0.00034988,7]
[394262747,1763412565912,-500.0,0.00034988,7]
[394262748,1763412565933,-500.0,0.00034988,7]
[394262749,1763412565954,-500.0,0.00034988,7]
[394262750,1763412565978,-500.0,0.00034988,7]
[394262751,1763412565999,-500.0,0.00034988,7]
[394262752,1763412566019,-500.0,0.00034988,7]
[394262753,1763412566042,-500.0,0.00034988,7]
[394262754,1763412566063,-500.0,0.00034988,7]
[394262755,1763412566090,-500.0,0.00034988,7]
[394262756,1763412566112,-500.0,0.00034988,7]
[394262757,1763412566136,-500.0,0.00034988,7]
[394262758,1763412566159,-500.0,0.00034988,7]
[394262759,1763412566184,-500.0,0.00034988,7]
[394262760,1763412566207,-500.0,0.00034988,7]
[394262761,1763412566231,-500.0,0.00034988,7]
[394262762,1763412566252,-500.0,0.00034988,7]
[394262763,1763412566272,-500.0,0.00034988,7]
[394262764,1763412566295,-500.0,0.00034988,7]
[394262765,1763412566315,-500.0,0.00034988,7]
[394262766,1763412566340,-500.0,0.00034988,7]
[394262767,1763412566359,-500.0,0.00034988,7]
[394262768,1763412566382,-500.0,0.00034988,7]
[394262769,1763412566403,-500.0,0.00034988,7]
[394262770,1763412566424,-500.0,0.00034988,7]
[394262771,1763412566446,-500.0,0.00034988,7]
[394262772,1763412566469,-500.0,0.00034988,7]
[394262773,1763412566493,-500.0,0.00034988,7]
[394262774,1763412566516,-500.0,0.00034988,7]
[394262775,1763412566537,-500.0,0.00034988,7]
[394262776,1763412566560,-500.0,0.00034988,7]
[394262777,1763412566582,-500.0,0.00034988,7]
[394262778,1763412566611,-500.0,0.00034988,7]
[394262779,1763412566635,-500.0,0.00034988,7]
[394262780,1763412566660,-500.0,0.00034988,7]
[394262781,1763412566680,-500.0,0.00034988,7]
[394262782,1763412566705,-222.26822481,0.00034988,7]
[394262783,1763412566726,-500.0,0.00034988,7]
[394262784,1763412566746,-500.0,0.00034988,7]
[394262785,1763412566766,-500.0,0.00034988,7]
[394262786,1763412566785,-500.0,0.00034988,7]
[394262787,1763412566806,-500.0,0.00034988,7]
[394262788,1763412566828,-500.0,0.00034988,7]
[394262789,1763412566854,-500.0,0.00034988,7]
[394262790,1763412566876,-500.0,0.00034988,7]
[394262791,1763412566896,-500.0,0.00034988,7]
[394262792,1763412566918,-500.0,0.00034988,7]
[394262793,1763412566939,-500.0,0.00034988,7]
[394262794,1763412566959,-500.0,0.00034988,7]
[394262795,1763412566979,-500.0,0.00034988,7]
[394262796,1763412567000,-500.0,0.00034988,7]
[394262797,1763412567020,-500.0,0.00034988,7]
[394262798,1763412567040,-500.0,0.00034988,7]
[394262799,1763412567060,-500.0,0.00034988,7]
[394262800,1763412567081,-500.0,0.00034988,7]
[394262801,1763412567105,-500.0,0.00034988,7]
[394262802,1763412567128,-500.0,0.00034988,7]
[394262803,1763412567149,-500.0,0.00034988,7]
[394262804,1763412567170,-500.0,0.00034988,7]
[394262805,1763412567192,-500.0,0.00034988,7]
[394262806,1763412567212,-500.0,0.00034988,7]
[394262807,1763412567232,-500.0,0.00034988,7]
[394262808,1763412567251,-500.0,0.00034988,7]
[394262809,1763412567271,-500.0,0.00034988,7]
[394262810,1763412567290,-500.0,0.00034988,7]
[394262811,1763412567309,-500.0,0.00034988,7]
[394262812,1763412567329,-500.0,0.00034988,7]
[394262813,1763412567351,-500.0,0.00034988,7]
[394262814,1763412567370,-500.0,0.00034988,7]
[394262815,1763412567390,-496.10129965,0.00034988,7]
[394262816,1763412567410,-500.0,0.00034988,7]
[394262817,1763412567429,-500.0,0.00034988,7]
[394262818,1763412567449,-500.0,0.00034988,7]
[394262819,1763412567469,-500.0,0.00034988,7]
[394262820,1763412567491,-500.0,0.00034988,7]
[394262821,1763412567510,-500.0,0.00034988,7]
[394262822,1763412567532,-500.0,0.00034988,7]
[394262823,1763412567555,-1336.05464293,0.00034988,7]
[394262824,1763412567578,-1336.05464293,0.00034988,7]
[394262825,1763412567604,-1336.05464293,0.00034988,7]
[394262826,1763412567629,-1336.05464293,0.00034988,7]
[394262827,1763412567655,-1336.05464293,0.00034988,7]
[394262828,1763412567683,-1336.05464293,0.00034988,7]
[394262829,1763412567712,-584.58213143,0.00034988,7]
[394262830,1763412574154,-751.4725115,0.00034988,7]
[394262831,1763412574178,-1336.05464293,0.00034988,7]
[394262832,1763412574201,-1336.05464293,0.00034988,7]
[394262833,1763412574222,-1336.05464293,0.00034988,7]
[394262834,1763412574244,-1336.05464293,0.00034988,7]
[394262835,1763412574267,-1336.05464293,0.00034988,7]
[394262836,1763412574288,-1336.05464293,0.00034988,7]
[394262837,1763412574311,-1336.05464293,0.00034988,7]
[394262838,1763412574334,-1336.05464293,0.00034988,7]
[394262839,1763412574358,-1336.05464293,0.00034988,7]
[394262840,1763412574379,-1336.05464293,0.00034988,7]
[394262841,1763412574400,-1336.05464293,0.00034988,7]
[394262842,1763412574421,-1336.05464293,0.00034988,7]
[394262843,1763412574443,-1336.05464293,0.00034988,7]
[394262844,1763412574464,-1336.05464293,0.00034988,7]
[394262845,1763412574491,-1336.05464293,0.00034988,7]
[394262846,1763412574512,-1336.05464293,0.00034988,7]
[394262847,1763412574535,-1336.05464293,0.00034988,7]
[394262848,1763412574559,-1336.05464293,0.00034988,7]
[394262849,1763412574581,-1336.05464293,0.00034988,7]
[394262850,1763412574603,-1336.05464293,0.00034988,7]
[394262851,1763412574625,-1336.05464293,0.00034988,7]
[394262852,1763412574647,-1336.05464293,0.00034988,7]
[394262853,1763412574668,-1336.05464293,0.00034988,7]
[394262854,1763412574690,-1336.05464293,0.00034988,7]
[394262855,1763412574712,-1336.05464293,0.00034988,7]
[394262856,1763412574735,-1336.05464293,0.00034988,7]
[394262857,1763412574758,-1336.05464293,0.00034988,7]
[394262858,1763412574781,-1336.05464293,0.00034988,7]
[394262859,1763412574803,-1336.05464293,0.00034988,7]
[394262860,1763412574822,-400.67432439,0.00034988,2]
[394262861,1763412574843,-400.0,0.00034988,2]
[394262862,1763412574862,-44582.3999914,0.00034989,2]
[394262863,1763412574884,-1153.31,0.00034989,10]
[394262864,1763412574904,-961.1,0.00034989,10]
[394262865,1763412574925,-1104.0,0.00034998,3]
[394262866,1763412574945,-239.35445095,0.00034998,7]
[394262867,1763412574968,-500.0,0.00034998,7]
[394262868,1763412574987,-500.0,0.00034998,7]
[394262869,1763412575007,-500.0,0.00034998,7]
[394262870,1763412575026,-500.0,0.00034998,7]
[394262871,1763412575046,-633.06870375,0.00034998,7]
[394262872,1763412575067,-500.0,0.00034998,7]
[394262873,1763412575086,-366.12524074,0.00034999,7]
[394262874,1763412575108,-151.0,0.00035,120]
[394262875,1763412575127,-525.0,0.00035,2]
[394262876,1763412575145,-444.50614288,0.0003515,2]
[394262877,1763412575166,-500.0,0.00035195,30]
[394262878,1763412575185,-161.772,0.00035196,41]
[394262879,1763412575202,-1000.0,0.0003521,2]
[394262880,1763412575221,-2000.0,0.0003521,2]
[394262881,1763412575240,-179.5,0.00035238,3]
[394262882,1763412575258,-538.55,0.00035238,3]
[394262883,1763412575278,-667.43,0.00035247,10]
[394262884,1763412575296,-2000.0,0.0003525,2]
[394262885,1763412575316,-500.0,0.00035257,30]
[394262886,1763412575335,-500.0,0.00035257,30]
[394262887,1763412575355,-162.70895661,0.00035273,5]
[394262888,1763412575374,-2000.0,0.000355,2]
[394262889,1763412575392,-1000.0,0.00035521,5]
[394262890,1763412575411,-44582.3999914,0.0003574,3]
[394262891,1763412575430,-2000.0,0.0003575,2]
[394262892,1763412575448,-150.0,0.00035773,5]
[394262893,1763412575466,-2000.0,0.00036,2]
[394262894,1763412575490,-1000.0,0.00036068,5]
[394262895,1763412575509,-2000.0,0.0003625,2]
[394262896,1763412575528,-2173.1161045,0.00036264,38]
[394262897,1763412575547,-217.47,0.000363,7]
[394262898,1763412575566,-679.12,0.000363,30]
[394262899,1763412575586,-2419.35,0.000363,14]
[394262900,1763412575606,-250.0,0.00036321,5]
[394262901,1763412575625,-2000.0,0.000365,2]
[394262902,1763412575645,-433.0465328,0.00036555,30]
[394262903,1763412575664,-359.0,0.00036608,3]
[394262904,1763412575762,-162.73168922,0.00036749,2]
[394262905,1763412575782,-2000.0,0.0003675,2]
[394262906,1763412575800,-1023.01974593,0.0003686,2]
[394262907,1763412575819,-350.0,0.00036868,5]
[394262908,1763412575841,-309.86,0.00036989,2]
[394262909,1763412575860,-2000.0,0.00037,2]
[394262910,1763412575878,-181.47390391,0.00037032,17]
[394262911,1763412575897,-2000.0,0.0003725,2]
[394262912,1763412575917,-500.0,0.00037299,30]
[394262913,1763412575936,-1012.147667,0.000373,25]
[394262914,1763412575956,-450.0,0.00037416,5]
[394262915,1763412575975,-500.0,0.00037473,5]
[394262916,1763412575995,-356.29,0.00037488,7]
[394262917,1763412576016,-560.0,0.00037515,2]
[394262918,1763412576035,-1000.0,0.000378,25]
[394262919,1763412576055,-500.0,0.00037935,30]
[394262920,1763412576075,-400.0,0.00037935,30]
[394262921,1763412576097,-151.0,0.000397,120]
[394262922,1763412576120,-413.14,0.00039834,2]
[394262923,1763412576141,-151.0,0.0004,12]
[394262924,1763412576161,-783.0,0.00040225,5]
[394262925,1763412576180,-217.47,0.000404,7]
[394262926,1763412576200,-679.12,0.000406,30]
[394262927,1763412576220,-2419.35,0.000406,14]
[394262928,1763412576240,-152.77812001,0.00040601,60]
[394262929,1763412576262,-1002.25877995,0.00040601,60]
[394262930,1763412576282,-151.0,0.000408,18]
[394262931,1763412576303,-2132.90227503,0.00040873,2]
[394262932,1763412576320,-258.30204647,0.00040948,2]
[394262933,1763412576341,-151.0,0.00040948,2]
[394262934,1763412576360,-151.0,0.00040948,2]
[394262935,1763412576380,-151.0,0.00040948,2]
[394262936,1763412576402,-151.0,0.00040948,2]
[394262937,1763412576421,-151.0,0.00040948,2]
[394262938,1763412576440,-151.0,0.00040948,2]
[394262939,1763412576459,-151.0,0.00040948,2]
[394262940,1763412576478,-151.0,0.00040948,2]
[394262941,1763412576500,-151.0,0.00040948,2]
[394262942,1763412576521,-151.0,0.00040948,2]
[394262943,1763412576541,-151.0,0.00040948,2]
[394262944,1763412576562,-151.0,0.00040948,2]
[394262945,1763412576581,-151.0,0.00040948,2]
[394262946,1763412576603,-151.0,0.00040948,2]
[394262947,1763412576629,-151.0,0.00040948,2]
[394262948,1763412576648,-151.0,0.00040948,2]
[394262949,1763412576668,-151.0,0.00040948,2]
[394262950,1763412576688,-151.0,0.00040948,2]
[394262951,1763412576708,-151.0,0.00040948,2]
[394262952,1763412576727,-151.0,0.00040948,2]
[394262953,1763412576748,-194.72792766,0.00040948,2]
[394262954,1763412576766,-222911.999957,0.00040963,3]
[394262955,1763412576786,-500.0,0.00040972,30]
[394262956,1763412576806,-500.0,0.00040972,30]
[394262957,1763412576826,-395.14,0.00040972,30]
[394262958,1763412576845,-201.43144836,0.00040973,5]
[394262959,1763412576866,-55145.28827279,0.00040973,2]
[394262960,1763412585084,150.0,0.00031248,2]
[394262961,1763412605193,2449.4354012,0.0002398,2]
[394263003,1763412631750,-349.7275,0.0002398,2]
[394263005,1763412631762,-2890.69863355,0.0002398,2]
[394263068,1763412636735,-1159.11344442,0.0002398,2]
[394263069,1763412636745,-164.91139963,0.00033903,7]
[394263070,1763412636754,-179.09,0.00034089,2]
[394263071,1763412636764,-1200.0,0.00034987,3]
[394263072,1763412636773,-400.0,0.00034987,2]
[394263073,1763412636783,-300.0,0.00034987,3]
[394263074,1763412636792,-500.0,0.00034988,7]
[394263076,1763412636801,-500.0,0.00034988,7]
[394263078,1763412636810,-193.14665297,0.00034988,7]
[394263080,1763412636819,-500.0,0.00034988,7]
[394263082,1763412636828,-500.0,0.00034988,7]
[394263084,1763412636837,-500.0,0.00034988,7]
[394263086,1763412636846,-500.0,0.00034988,7]
[394263087,1763412636854,-500.0,0.00034988,7]
[394263088,1763412636864,-500.0,0.00034988,7]
[394263089,1763412636873,-500.0,0.00034988,7]
[394263090,1763412636884,-500.0,0.00034988,7]
[394263091,1763412636894,-500.0,0.00034988,7]
[394263092,1763412636904,-500.0,0.00034988,7]
[394263093,1763412636914,-500.0,0.00034988,7]
[394263094,1763412636924,-500.0,0.00034988,7]
[394263095,1763412636933,-500.0,0.00034988,7]
[394263096,1763412636943,-500.0,0.00034988,7]
[394263097,1763412636953,-500.0,0.00034988,7]
[394263098,1763412636962,-500.0,0.00034988,7]
[394263099,1763412636972,-500.0,0.00034988,7]
[394263100,1763412636982,-500.0,0.00034988,7]
[394263101,1763412636991,-500.0,0.00034988,7]
[394263102,1763412637001,-500.0,0.00034988,7]
[394263103,1763412637011,-500.0,0.00034988,7]
[394263104,1763412637021,-500.0,0.00034988,7]
[394263105,1763412637030,-500.0,0.00034988,7]
[394263106,1763412637040,-500.0,0.00034988,7]
[394263107,1763412637049,-500.0,0.00034988,7]
[394263108,1763412637059,-500.0,0.00034988,7]
[394263109,1763412637069,-500.0,0.00034988,7]
[394263110,1763412637078,-500.0,0.00034988,7]
[394263111,1763412637088,-500.0,0.00034988,7]
[394263112,1763412637097,-500.0,0.00034988,7]
[394263113,1763412637107,-500.0,0.00034988,7]
[394263114,1763412637116,-500.0,0.00034988,7]
[394263115,1763412637125,-500.0,0.00034988,7]
[394263116,1763412637137,-500.0,0.00034988,7]
[394263117,1763412637147,-500.0,0.00034988,7]
[394263118,1763412637156,-500.0,0.00034988,7]
[394263119,1763412637166,-500.0,0.00034988,7]
[394263120,1763412637176,-145.50829089,0.00034988,7]
[394263182,1763412639885,-165.23463295,0.00034988,7]
[394263508,1763412643096,-0.40443238,0.00034988,7]
[394263510,1763412643108,-273.49942292,0.00034988,7]
[394263512,1763412643118,-500.0,0.00034988,7]
[394263514,1763412643128,-500.0,0.00034988,7]
[394263516,1763412643141,-500.0,0.00034988,7]
[394263518,1763412643151,-500.0,0.00034988,7]
[394263520,1763412643161,-388.11057711,0.00034988,7]
[394263812,1763412645981,-111.88942289,0.00034988,7]
[394263814,1763412645991,-438.38635816,0.00034988,7]
[394263816,1763412646000,-500.0,0.00034988,7]
[394263818,1763412646010,-500.0,0.00034988,7]
[394263820,1763412646020,-500.0,0.00034988,7]
[394263822,1763412646029,-500.0,0.00034988,7]
[394263824,1763412646039,-500.0,0.00034988,7]
[394263826,1763412646049,-500.0,0.00034988,7]
[394263828,1763412646058,-500.0,0.00034988,7]
[394263830,1763412646068,-500.0,0.00034988,7]
[394263832,1763412646077,-500.0,0.00034988,7]
[394263834,1763412646087,-500.0,0.00034988,7]
[394263835,1763412646096,-500.0,0.00034988,7]
[394263837,1763412646107,-500.0,0.00034988,7]
[394263839,1763412646116,-500.0,0.00034988,7]
[394263841,1763412646125,-500.0,0.00034988,7]
[394263843,1763412646134,-500.0,0.00034988,7]
[394263845,1763412646148,-500.0,0.00034988,7]
[394263847,1763412646157,-500.0,0.00034988,7]
[394263849,1763412646167,-500.0,0.00034988,7]
[394263851,1763412646176,-500.0,0.00034988,7]
[394263853,1763412646185,-500.0,0.00034988,7]
[394263854,1763412646195,-500.0,0.00034988,7]
[394263855,1763412646204,-500.0,0.00034988,7]
[394263856,1763412646214,-500.0,0.00034988,7]
[394263857,1763412646223,-496.10129965,0.00034988,7]
[394263858,1763412646233,-500.0,0.00034988,7]
[394263859,1763412646242,-500.0,0.00034988,7]
[394263860,1763412646251,-500.0,0.00034988,7]
[394263862,1763412646260,-500.0,0.00034988,7]
[394263864,1763412646270,-500.0,0.00034988,7]
[394263866,1763412646279,-500.0,0.00034988,7]
[394263867,1763412646288,-268.64,0.0003693,2]
[394263868,1763412646297,-560.0,0.00037514,2]
[394263869,1763412646306,-1402.99,0.00037747,2]
[394263870,1763412646315,-1402.99,0.00037758,2]
[394263871,1763412646324,-185.72314431,0.00038268,5]
[394263872,1763412646333,-358.18,0.00039771,2]
[394263873,1763412646341,-783.0,0.00040224,5]
[394263874,1763412646350,-444.50614288,0.00040878,2]
[394263875,1763412646359,-194.72792766,0.00040948,2]
[394263876,1763412646369,-151.0,0.00040948,2]
[394263877,1763412646378,-151.0,0.00040948,2]
[394263878,1763412646387,-151.0,0.00040948,2]
[394263879,1763412646399,-203.53124725,0.00040948,2]
[394263880,1763412646408,-556.19,0.00040963,10]
[394263881,1763412646417,-463.49,0.00040963,10]
[394263884,1763412646429,-167.54811567,0.00040972,31]
[394263886,1763412646438,-500.0,0.00040972,7]
[394263888,1763412646448,-193.14809263,0.00040972,7]
[394263890,1763412646457,-500.0,0.00040972,7]
[394263892,1763412646466,-500.0,0.00040972,7]
[394263894,1763412646475,-500.0,0.00040972,7]
[394263896,1763412646484,-84929.6975413,0.00040973,2]
[394263898,1763412646495,-6832.24487306,0.00040973,2]
[394263900,1763412646511,-957.10000042,0.00040973,2]
[394264117,1763412648726,-5613.98039488,0.00040973,2]
[394266505,1763412864554,214.561366,0.00015775,2]
[394266506,1763412896425,215.28273032,0.00015775,2]
[394266509,1763413530102,-603.89986836,0.00021667,2]
[394266510,1763413542579,-2390.94520086,0.0002145,2]
[394266511,1763413738087,-500.0,0.00021236,2]
[394266512,1763413739769,-213.866921,0.00021236,2]
[394266514,1763413747124,-500.0,0.00021024,2]
[394266515,1763413747145,-4286.133079,0.00021236,2]
[394266516,1763413747167,-150.0,0.00021506,2]
[394266517,1763413747188,-215.28273032,0.00021886,2]
[394266518,1763413747208,-150.0,0.000219,2]
[394266519,1763413747233,-177.0,0.00023506,2]
[394266520,1763413747260,-300.0,0.00023555,2]
[394266521,1763413747282,-8670.06817068,0.00023556,2]
[394266522,1763413749179,-2189.85003355,0.00023556,2]
[394266523,1763413752234,-3174.50865477,0.00023556,2]
[394266524,1763413752260,-202.966829,0.00023998,2]
[394266525,1763413752283,-1200.0,0.00024106,2]
[394266526,1763413752304,-733.0302761,0.00024107,2]
[394266527,1763413752323,-779.59310145,0.00024107,2]
[394266528,1763413752344,-999.0,0.0002425,2]
[394266529,1763413752365,-779.59310145,0.00025122,2]
[394266530,1763413752386,-1397.28,0.00025211,10]
[394266531,1763413752406,-1164.4,0.00025211,10]
[394266532,1763413752436,-500.0,0.0002522,2]
[394266533,1763413752461,-500.0,0.0002522,2]
[394266534,1763413752482,-500.0,0.0002522,2]
[394266535,1763413752505,-500.0,0.0002522,2]
[394266536,1763413752527,-500.0,0.0002522,2]
[394266537,1763413752553,-500.0,0.0002522,2]
[394266538,1763413752576,-500.0,0.0002522,2]
[394266539,1763413752599,-529.71556238,0.0002522,2]
[394266540,1763413752626,-500.0,0.0002522,2]
[394266541,1763413752650,-426.37211215,0.0002522,2]
[394266542,1763413752673,-500.0,0.0002522,2]
[394266543,1763413752692,-230.95020961,0.0002522,2]
[394266544,1763413752715,-500.0,0.0002522,2]
[394266545,1763413752735,-500.0,0.0002522,2]
[394266546,1763413752760,-500.0,0.0002522,2]
[394266547,1763413752783,-276.88753537,0.0002522,2]
[394266548,1763413752809,-500.0,0.0002522,2]
[394266549,1763413752833,-500.0,0.0002522,2]
[394266550,1763413752856,-500.0,0.0002522,2]
[394266551,1763413752881,-603.11896028,0.0002522,2]
[394266552,1763413752902,-500.0,0.0002522,2]
[394266553,1763413752923,-500.0,0.0002522,2]
[394266554,1763413752946,-500.0,0.0002522,2]
[394266555,1763413752968,-500.0,0.0002522,2]
[394266556,1763413752994,-500.0,0.0002522,2]
[394266557,1763413753015,-500.0,0.0002522,2]
[394266558,1763413753035,-500.0,0.0002522,2]
[394266559,1763413753058,-500.0,0.0002522,2]
[394266560,1763413753081,-500.0,0.0002522,2]
[394266561,1763413753105,-500.0,0.0002522,2]
[394266562,1763413753128,-500.0,0.0002522,2]
[394266563,1763413753152,-336.07141201,0.0002522,2]
[394266564,1763413753323,-163.92858799,0.0002522,2]
[394266565,1763413753349,-500.0,0.0002522,2]
[394266566,1763413753375,-500.0,0.0002522,2]
[394266567,1763413753396,-500.0,0.0002522,2]
[394266568,1763413753421,-500.0,0.0002522,2]
[394266569,1763413753442,-505.59242911,0.0002522,2]
[394266570,1763413753466,-500.0,0.0002522,2]
[394266571,1763413753489,-650.0,0.0002522,2]
[394266572,1763413753515,-500.0,0.0002522,2]
[394266573,1763413753537,-500.0,0.0002522,2]
[394266574,1763413753560,-500.0,0.0002522,2]
[394266575,1763413753581,-500.0,0.0002522,2]
[394266576,1763413753604,-500.0,0.0002522,2]
[394266577,1763413753626,-500.0,0.0002522,2]
[394266578,1763413753648,-500.0,0.0002522,2]
[394266579,1763413753669,-303.79656942,0.0002522,2]
[394266747,1763413837892,-213.866921,0.00024703,2]
[394266749,1763413837904,-5000.0,0.00024953,2]
[394266751,1763413837916,-500.0,0.00024973,2]
[394266753,1763413837925,-209.55186969,0.00024973,2]
[394266755,1763413837934,-184.46796573,0.00024973,2]
[394266756,1763413837943,-500.0,0.00024973,2]
[394266757,1763413837954,-505.89614439,0.00024973,2]
[394266758,1763413837963,-500.0,0.00024973,2]
[394266759,1763413837972,-500.0,0.00024973,2]
[394266760,1763413837982,-500.0,0.00024973,2]
[394266761,1763413837991,-500.0,0.00024973,2]
[394266762,1763413838000,-50000.0,0.00024973,2]
[394266763,1763413838010,-496.55,0.0002498,10]
[394266764,1763413838019,-887.58,0.0002498,10]
[394266765,1763413838028,-300.0,0.00024989,2]
[394266766,1763413838038,-300.0,0.00024989,2]
[394266767,1763413838047,-1200.0,0.00024989,2]
[394266768,1763413838058,-381.21825958,0.00024989,2]
[394266769,1763413838067,-500.0,0.00024989,2]
[394266770,1763413838076,-500.0,0.00024989,2]
[394266771,1763413838085,-184.65595841,0.00024989,2]
[394266772,1763413838095,-500.0,0.00024989,2]
[394266773,1763413838104,-500.0,0.00024989,2]
[394266774,1763413838114,-500.0,0.00024989,2]
[394266775,1763413838124,-29407.79018716,0.0002499,2]
[394266776,1763413839509,-69222.99164656,0.0002499,2]
[394266777,1763413839519,-7680.67755398,0.0002512,2]
[394266778,1763413839528,-196.20343058,0.0002522,2]
[394266780,1763413839538,-500.0,0.0002522,2]